fUST/lending_fUST_20240916
["ID","MTS","AMOUNT","RATE_DAILY","PERIOD"]
[338249604,1726439146184,-3477.21,0.00021917,2]
[338249605,1726439146206,-500.57206471,0.00021917,2]
[338249606,1726439146229,-500.0,0.00021917,2]
[338249607,1726439146250,-500.0,0.00021917,2]
[338249608,1726439146270,-789.32,0.00021917,2]
[338249609,1726439146296,-500.0,0.00021917,2]
[338249610,1726439146318,-546.75,0.00021917,2]
[338249611,1726439146340,-500.0,0.00021917,2]
[338249612,1726439146362,-870.7,0.00021917,2]
[338249613,1726439146384,-582.03435413,0.00021917,2]
[338249614,1726439146407,-502.38122981,0.00021917,2]
[338249615,1726439146428,-500.0,0.00021917,2]
[338249616,1726439146451,-519.22606464,0.00021917,2]
[338249617,1726439146473,-843.13,0.00021917,2]
[338249618,1726439146494,-500.0,0.00021917,2]
[338249619,1726439146517,-500.0,0.00021917,2]
[338249620,1726439146539,-506.59159184,0.00021917,2]
[338249621,1726439146562,-186.70820259,0.00021917,2]
[338249622,1726439146583,-500.0,0.00021917,2]
[338249623,1726439146604,-500.0,0.00021917,2]
[338249624,1726439146627,-500.0,0.00021917,2]
[338249625,1726439146658,-500.0,0.00021917,2]
[338249626,1726439146678,-500.0,0.00021917,2]
[338249627,1726439146699,-500.0,0.00021917,2]
[338249628,1726439146720,-606.87,0.00021917,2]
[338249629,1726439146742,-500.0,0.00021917,2]
[338249630,1726439146764,-500.0,0.00021917,2]
[338249631,1726439146786,-500.0,0.00021917,2]
[338249632,1726439146810,-500.0,0.00021917,2]
[338249633,1726439146834,-500.0,0.00021917,2]
[338249634,1726439146856,-500.0,0.00021917,2]
[338249635,1726439146878,-500.0,0.00021917,2]
[338249636,1726439146900,-500.0,0.00021917,2]
[338249637,1726439146924,-500.0,0.00021917,2]
[338249638,1726439146946,-500.0,0.00021917,2]
[338249639,1726439146968,-500.0,0.00021917,2]
[338249640,1726439146994,-500.0,0.00021917,2]
[338249641,1726439147016,-500.0,0.00021917,2]
[338249642,1726439147038,-482.05489535,0.00021917,2]
[338249643,1726439147060,-500.0,0.00021917,2]
[338249644,1726439147082,-500.0,0.00021917,2]
[338249645,1726439147107,-500.0,0.00021917,2]
[338249646,1726439147128,-500.0,0.00021917,2]
[338249647,1726439147152,-210.64149446,0.00021917,2]
[338249648,1726439147175,-500.0,0.00021917,2]
[338249649,1726439147200,-1356.56,0.00021917,2]
[338249650,1726439147224,-500.0,0.00021917,2]
[338249651,1726439147249,-500.0,0.00021917,2]
[338249652,1726439147271,-500.0,0.00021917,2]
[338249653,1726439147296,-500.52,0.00021917,2]
[338249654,1726439147318,-502.55996897,0.00021917,2]
[338249655,1726439147341,-500.0,0.00021917,2]
[338249656,1726439147363,-500.0,0.00021917,2]
[338249657,1726439147385,-500.0,0.00021917,2]
[338249658,1726439147407,-500.0,0.00021917,2]
[338249659,1726439147429,-500.0,0.00021917,2]
[338249660,1726439147452,-500.0,0.00021917,2]
[338249661,1726439147477,-500.0,0.00021917,2]
[338249662,1726439147502,-1980.92,0.00021917,2]
[338249663,1726439147524,-500.0,0.00021917,2]
[338249664,1726439147547,-630.466288,0.00021917,2]
[338249665,1726439147571,-500.0,0.00021917,2]
[338249666,1726439147593,-1356.45,0.00021917,2]
[338249667,1726439147616,-500.0,0.00021917,2]
[338249668,1726439147641,-612.7,0.00021917,2]
[338249669,1726439147666,-500.0,0.00021917,2]
[338249670,1726439147690,-500.0,0.00021917,2]
[338249671,1726439147711,-500.0,0.00021917,2]
[338249672,1726439147735,-2001.28,0.00021917,2]
[338249673,1726439147759,-1045.68,0.00021917,2]
[338249674,1726439147782,-500.0,0.00021917,2]
[338249675,1726439147804,-500.0,0.00021917,2]
[338249676,1726439147829,-500.0,0.00021917,2]
[338249677,1726439147853,-1606.93,0.00021917,2]
[338249678,1726439147875,-500.0,0.00021917,2]
[338249679,1726439147897,-1323.36,0.00021917,2]
[338249680,1726439147922,-1442.4,0.00021917,2]
[338249681,1726439147946,-500.0,0.00021917,2]
[338249682,1726439147969,-500.0,0.00021917,2]
[338249683,1726439148007,-500.0,0.00021917,2]
[338249684,1726439148032,-500.0,0.00021917,2]
[338249685,1726439148056,-500.23305791,0.00021917,2]
[338249686,1726439148079,-765.06,0.00021917,2]
[338249687,1726439148104,-500.0,0.00021917,2]
[338249688,1726439148128,-500.0,0.00021917,2]
[338249689,1726439148153,-4961.28,0.00021917,2]
[338249690,1726439148178,-718.28,0.00021917,2]
[338249691,1726439148202,-500.0,0.00021917,2]
[338249692,1726439148225,-500.0,0.00021917,2]
[338249693,1726439148249,-1123.52,0.00021917,2]
[338249694,1726439148273,-500.0,0.00021917,2]
[338249695,1726439148296,-2709.94,0.00021917,2]
[338249696,1726439148320,-1710.23,0.00021917,2]
[338249697,1726439148344,-500.0,0.00021917,2]
[338249698,1726439148367,-500.0,0.00021917,2]
[338249699,1726439148666,-2548.37,0.00021917,2]
[338249700,1726439148698,-500.0,0.00021917,2]
[338249701,1726439148722,-1446.98,0.00021917,2]
[338249702,1726439148745,-6315.02,0.00021917,2]
[338249703,1726439148768,-500.0,0.00021917,2]
[338249704,1726439148790,-500.0,0.00021917,2]
[338249705,1726439148813,-500.0,0.00021917,2]
[338249706,1726439148836,-500.0,0.00021917,2]
[338249707,1726439148859,-500.0,0.00021917,2]
[338249708,1726439148884,-500.0,0.00021917,2]
[338249709,1726439148908,-724.07,0.00021917,2]
[338249710,1726439148931,-279.29848048,0.00021917,2]
[338249711,1726439148953,-1248.51,0.00021917,2]
[338249712,1726439148975,-566.15,0.00021917,2]
[338249713,1726439148998,-500.0,0.00021917,2]
[338249714,1726439149020,-1615.23,0.00021917,2]
[338249715,1726439149042,-500.0,0.00021917,2]
[338249716,1726439149064,-939.2,0.00021917,2]
[338249717,1726439149086,-500.0,0.00021917,2]
[338249718,1726439149109,-514.67754221,0.00021917,2]
[338249719,1726439225087,-300.0,0.00021916,2]
[338249720,1726439225109,-243.81562553,0.00021917,5]
[338249721,1726439225129,-132.5456081,0.00021917,2]
[338249722,1726439225150,-500.0,0.00021917,2]
[338249723,1726439225172,-693.21,0.00021917,2]
[338249724,1726439225194,-500.0,0.00021917,2]
[338249725,1726439225214,-500.0,0.00021917,2]
[338249726,1726439225235,-1468.38,0.00021917,2]
[338249727,1726439225256,-188.99825392,0.00021917,2]
[338249728,1726439225276,-339.04916372,0.00021917,2]
[338249729,1726439225297,-535.84,0.00021917,2]
[338249730,1726439225318,-544.88,0.00021917,2]
[338249731,1726439225341,-500.0,0.00021917,2]
[338249732,1726439225363,-2027.34,0.00021917,2]
[338249733,1726439225386,-500.0,0.00021917,2]
[338249734,1726439225410,-500.0,0.00021917,2]
[338249735,1726439225436,-738.07,0.00021917,2]
[338249736,1726439225459,-350.5192234,0.00021917,2]
[338249737,1726439225480,-500.0,0.00021917,2]
[338249738,1726439225501,-202.15,0.00021917,2]
[338249739,1726439225524,-500.0,0.00021917,2]
[338249740,1726439225546,-500.0,0.00021917,2]
[338249741,1726439225568,-500.0,0.00021917,2]
[338249742,1726439225590,-3675.2,0.00021917,2]
[338249743,1726439225611,-3328.12,0.00021917,2]
[338249744,1726439225633,-2064.38,0.00021917,2]
[338249745,1726439225654,-666.95,0.00021917,2]
[338249746,1726439225676,-578.21,0.00021917,2]
[338249747,1726439225700,-500.0,0.00021917,2]
[338249748,1726439225725,-4470.57,0.00021917,2]
[338249749,1726439225748,-3019.78,0.00021917,2]
[338249750,1726439225768,-500.0,0.00021917,2]
[338249751,1726439225790,-500.0,0.00021917,2]
[338249752,1726439225811,-500.0,0.00021917,2]
[338249753,1726439225833,-213.68091121,0.00021917,2]
[338249754,1726439225853,-500.0,0.00021917,2]
[338249755,1726439225875,-1609.14,0.00021917,2]
[338249756,1726439225895,-500.0,0.00021917,2]
[338249757,1726439225917,-500.0,0.00021917,2]
[338249758,1726439225939,-500.0,0.00021917,2]
[338249759,1726439225960,-725.43,0.00021917,2]
[338249760,1726439225981,-502.42938054,0.00021917,2]
[338249761,1726439226001,-1019.92,0.00021917,2]
[338249762,1726439226022,-500.0,0.00021917,2]
[338249763,1726439226043,-500.0,0.00021917,2]
[338249764,1726439226064,-843.55,0.00021917,2]
[338249765,1726439226084,-500.38383135,0.00021917,2]
[338249766,1726439226107,-500.0,0.00021917,2]
[338249767,1726439226129,-500.0,0.00021917,2]
[338249768,1726439226150,-503.75513047,0.00021917,2]
[338249769,1726439226171,-500.0,0.00021917,2]
[338249770,1726439226196,-965.55,0.00021917,2]
[338249771,1726439226219,-500.0,0.00021917,2]
[338249772,1726439226241,-500.0,0.00021917,2]
[338249773,1726439226262,-620.94,0.00021917,2]
[338249774,1726439226283,-500.0,0.00021917,2]
[338249775,1726439226304,-500.0,0.00021917,2]
[338249776,1726439226326,-500.0,0.00021917,2]
[338249777,1726439226347,-908.16,0.00021917,2]
[338249778,1726439226368,-500.0,0.00021917,2]
[338249779,1726439226390,-500.0,0.00021917,2]
[338249780,1726439226412,-3618.83,0.00021917,2]
[338249781,1726439226434,-500.0,0.00021917,2]
[338249782,1726439226454,-500.0,0.00021917,2]
[338249783,1726439226475,-504.04018527,0.00021917,2]
[338249784,1726439226496,-500.0,0.00021917,2]
[338249785,1726439226520,-788.0,0.00021917,2]
[338249786,1726439226541,-500.0,0.00021917,2]
[338249787,1726439226564,-584.51,0.00021917,2]
[338249788,1726439226589,-500.0,0.00021917,2]
[338249789,1726439226612,-500.0,0.00021917,2]
[338249790,1726439226632,-500.0,0.00021917,2]
[338249791,1726439226654,-500.0,0.00021917,2]
[338249792,1726439226675,-422.91024708,0.00021917,2]
[338249793,1726439226695,-500.0,0.00021917,2]
[338249794,1726439226720,-500.0,0.00021917,2]
[338249795,1726439226742,-1883.72,0.00021917,2]
[338249796,1726439226762,-1883.72,0.00021917,2]
[338249797,1726439226784,-151.0,0.00021917,2]
[338249798,1726439226807,-500.0,0.00021917,2]
[338249799,1726439226829,-1883.72,0.00021917,2]
[338249800,1726439226852,-151.0,0.00021917,2]
[338249801,1726439226877,-1883.72,0.00021917,2]
[338249802,1726439226899,-1883.72,0.00021917,2]
[338249803,1726439226922,-1883.72,0.00021917,2]
[338249804,1726439226945,-593.72,0.00021917,2]
[338249805,1726439226965,-1883.72,0.00021917,2]
[338249806,1726439226986,-1883.72,0.00021917,2]
[338249807,1726439227007,-1883.72,0.00021917,2]
[338249808,1726439227027,-1883.72,0.00021917,2]
[338249809,1726439227049,-1883.72,0.00021917,2]
[338249810,1726439227069,-1883.72,0.00021917,2]
[338249811,1726439227089,-1883.72,0.00021917,2]
[338249812,1726439227110,-1883.72,0.00021917,2]
[338249813,1726439227130,-1883.72,0.00021917,2]
[338249814,1726439227150,-1883.72,0.00021917,2]
[338249815,1726439227171,-1883.72,0.00021917,2]
[338249816,1726439227193,-1883.72,0.00021917,2]
[338249817,1726439227215,-1883.72,0.00021917,2]
[338249818,1726439227238,-1883.72,0.00021917,2]
[338249819,1726439227259,-1883.72,0.00021917,2]
[338249820,1726439227281,-500.0,0.00021917,2]
[338249821,1726439227303,-1883.72,0.00021917,2]
[338249822,1726439227325,-1883.72,0.00021917,2]
[338249823,1726439227346,-1883.73088276,0.00021917,2]
[338249824,1726439227366,-500.0,0.00021917,2]
[338249825,1726439227386,-500.0,0.00021917,2]
[338249826,1726439227406,-500.0,0.00021917,2]
[338249827,1726439227426,-500.0,0.00021917,2]
[338249828,1726439227448,-587.98,0.00021917,2]
[338249829,1726439227468,-500.0,0.00021917,2]
[338249830,1726439227489,-611.43,0.00021917,2]
[338249831,1726439227515,-500.0,0.00021917,2]
[338249832,1726439227537,-500.0,0.00021917,2]
[338249833,1726439227558,-439.08394631,0.00021917,2]
[338249834,1726439227580,-635.54,0.00021917,2]
[338249835,1726439227602,-500.0,0.00021917,2]
[338249836,1726439227624,-500.0,0.00021917,2]
[338249837,1726439227823,-500.0,0.00021917,2]
[338249838,1726439227853,-1741.63,0.00021917,2]
[338249839,1726439227875,-500.0,0.00021917,2]
[338249840,1726439227896,-500.0,0.00021917,2]
[338249841,1726439227917,-500.0,0.00021917,2]
[338249842,1726439227939,-500.0,0.00021917,2]
[338249843,1726439227960,-500.0,0.00021917,2]
[338249844,1726439227980,-500.0,0.00021917,2]
[338249845,1726439228000,-500.0,0.00021917,2]
[338249846,1726439228022,-500.0,0.00021917,2]
[338249847,1726439228044,-584.35,0.00021917,2]
[338249848,1726439228065,-986.13,0.00021917,2]
[338249849,1726439228086,-500.0,0.00021917,2]
[338249850,1726439228106,-500.0,0.00021917,2]
[338249851,1726439228128,-500.0,0.00021917,2]
[338249852,1726439228148,-500.0,0.00021917,2]
[338249853,1726439228170,-500.0,0.00021917,2]
[338249854,1726439228194,-500.0,0.00021917,2]
[338249855,1726439228216,-500.0,0.00021917,2]
[338249856,1726439228238,-500.0,0.00021917,2]
[338249857,1726439228260,-500.0,0.00021917,2]
[338249858,1726439228282,-500.0,0.00021917,2]
[338249859,1726439228304,-500.0,0.00021917,2]
[338249860,1726439228327,-500.0,0.00021917,2]
[338249861,1726439228348,-500.0,0.00021917,2]
[338249862,1726439228371,-500.0,0.00021917,2]
[338249863,1726439228392,-500.0,0.00021917,2]
[338249864,1726439228413,-500.0,0.00021917,2]
[338249865,1726439228438,-500.0,0.00021917,2]
[338249866,1726439228460,-500.0,0.00021917,2]
[338249867,1726439228482,-457.6383467,0.00021917,2]
[338249868,1726439228506,-500.0,0.00021917,2]
[338249869,1726439228528,-500.0,0.00021917,2]
[338249870,1726439228551,-500.0,0.00021917,2]
[338249871,1726439228572,-500.0,0.00021917,2]
[338249872,1726439228594,-500.0,0.00021917,2]
[338249873,1726439228615,-623.77,0.00021917,2]
[338249874,1726439228639,-500.0,0.00021917,2]
[338249875,1726439228660,-500.0,0.00021917,2]
[338249876,1726439228682,-874.06,0.00021917,2]
[338249877,1726439228705,-217.86380091,0.00021917,2]
[338249878,1726439228731,-328.85440365,0.00021917,2]
[338249879,1726439228755,-500.0,0.00021917,2]
[338249880,1726439228780,-2014.18,0.00021917,2]
[338249881,1726439228804,-500.0,0.00021917,2]
[338249882,1726439228828,-1887.3,0.00021917,2]
[338249883,1726439228849,-500.0,0.00021917,2]
[338249884,1726439228870,-500.0,0.00021917,2]
[338249885,1726439228890,-500.0,0.00021917,2]
[338249886,1726439228912,-1547.88,0.00021917,2]
[338249887,1726439228933,-500.0,0.00021917,2]
[338249888,1726439228955,-500.0,0.00021917,2]
[338249889,1726439228980,-500.0,0.00021917,2]
[338249890,1726439229002,-500.0,0.00021917,2]
[338249891,1726439229026,-500.0,0.00021917,2]
[338249892,1726439229048,-574.48,0.00021917,2]
[338249893,1726439229069,-660.01,0.00021917,2]
[338249894,1726439229090,-1838.0,0.00021917,2]
[338249895,1726439229115,-500.0,0.00021917,2]
[338249896,1726439229135,-500.0,0.00021917,2]
[338249897,1726439229157,-500.0,0.00021917,2]
[338249898,1726439229178,-202.91452243,0.00021917,2]
[338249899,1726439229200,-1077.08,0.00021917,2]
[338249900,1726439229224,-982.79,0.00021917,2]
[338249901,1726439229247,-500.0,0.00021917,2]
[338249902,1726439229270,-500.0,0.00021917,2]
[338249903,1726439229293,-500.0,0.00021917,2]
[338249904,1726439229316,-500.0,0.00021917,2]
[338249905,1726439229338,-500.0,0.00021917,2]
[338249906,1726439229358,-500.0,0.00021917,2]
[338249907,1726439229379,-500.0,0.00021917,2]
[338249908,1726439229399,-1717.19,0.00021917,2]
[338249909,1726439229420,-500.0,0.00021917,2]
[338249910,1726439229442,-286.11805495,0.00021917,2]
[338249911,1726439229462,-500.0,0.00021917,2]
[338249912,1726439229484,-500.0,0.00021917,2]
[338249913,1726439229506,-1336.72,0.00021917,2]
[338249914,1726439229526,-618.34,0.00021917,2]
[338249915,1726439229549,-500.0,0.00021917,2]
[338249916,1726439229571,-248.38649215,0.00021917,2]
[338249917,1726439238116,-2289.91350785,0.00021917,2]
[338249918,1726439238143,-500.0,0.00021917,2]
[338249919,1726439238168,-500.0,0.00021917,2]
[338249920,1726439238194,-500.0,0.00021917,2]
[338249921,1726439238217,-500.0,0.00021917,2]
[338249922,1726439238240,-500.0,0.00021917,2]
[338249923,1726439238264,-500.0,0.00021917,2]
[338249924,1726439238288,-500.0,0.00021917,2]
[338249925,1726439238311,-1374.68,0.00021917,2]
[338249926,1726439238332,-840.41,0.00021917,2]
[338249927,1726439238356,-500.0,0.00021917,2]
[338249928,1726439238378,-978.96,0.00021917,2]
[338249929,1726439238399,-1024.32,0.00021917,2]
[338249930,1726439238421,-783.36,0.00021917,2]
[338249931,1726439238448,-500.0,0.00021917,2]
[338249932,1726439238471,-500.0,0.00021917,2]
[338249933,1726439238495,-501.95227007,0.00021917,2]
[338249934,1726439238518,-500.0,0.00021917,2]
[338249935,1726439238542,-1161.31,0.00021917,2]
[338249936,1726439238566,-506.39646104,0.00021917,2]
[338249937,1726439238589,-500.0,0.00021917,2]
[338249938,1726439238623,-500.0,0.00021917,2]
[338249939,1726439238645,-488.80798417,0.00021917,2]
[338249940,1726439238669,-1216.29,0.00021917,2]
[338249941,1726439238691,-500.0,0.00021917,2]
[338249942,1726439238714,-516.78612874,0.00021917,2]
[338249943,1726439238737,-500.0,0.00021917,2]
[338249944,1726439238760,-500.0,0.00021917,2]
[338249945,1726439238784,-500.0,0.00021917,2]
[338249946,1726439238806,-500.0,0.00021917,2]
[338249947,1726439238828,-500.0,0.00021917,2]
[338249948,1726439238851,-500.0,0.00021917,2]
[338249949,1726439238874,-563.91,0.00021917,2]
[338249950,1726439238896,-500.0,0.00021917,2]
[338249951,1726439238922,-500.0,0.00021917,2]
[338249952,1726439238946,-500.0,0.00021917,2]
[338249953,1726439238969,-3545.19,0.00021917,2]
[338249954,1726439238993,-324.00173483,0.00021917,2]
[338249955,1726439239015,-500.0,0.00021917,2]
[338249956,1726439239039,-500.45703502,0.00021917,2]
[338249957,1726439239061,-500.0,0.00021917,2]
[338249958,1726439239083,-500.0,0.00021917,2]
[338249959,1726439239105,-500.0,0.00021917,2]
[338249960,1726439239127,-500.0,0.00021917,2]
[338249961,1726439239154,-500.0,0.00021917,2]
[338249962,1726439239178,-989.7,0.00021917,2]
[338249963,1726439239204,-500.0,0.00021917,2]
[338249964,1726439239226,-500.0,0.00021917,2]
[338249965,1726439239249,-500.0,0.00021917,2]
[338249966,1726439239271,-640.56,0.00021917,2]
[338249967,1726439239295,-540.87,0.00021917,2]
[338249968,1726439239318,-540.87,0.00021917,2]
[338249969,1726439239341,-540.87,0.00021917,2]
[338249970,1726439239364,-540.87,0.00021917,2]
[338249971,1726439239391,-500.0,0.00021917,2]
[338249972,1726439239417,-540.87,0.00021917,2]
[338249973,1726439239440,-540.87,0.00021917,2]
[338249974,1726439239468,-540.87,0.00021917,2]
[338249975,1726439239491,-540.87,0.00021917,2]
[338249976,1726439239514,-540.87,0.00021917,2]
[338249977,1726439239537,-540.87,0.00021917,2]
[338249978,1726439239559,-540.87,0.00021917,2]
[338249979,1726439239583,-540.87,0.00021917,2]
[338249980,1726439239606,-540.87,0.00021917,2]
[338249981,1726439239629,-540.87,0.00021917,2]
[338249982,1726439239651,-540.87,0.00021917,2]
[338249983,1726439239673,-540.87,0.00021917,2]
[338249984,1726439239697,-540.87,0.00021917,2]
[338249985,1726439239721,-500.0,0.00021917,2]
[338249986,1726439239743,-540.87,0.00021917,2]
[338249987,1726439239766,-540.87,0.00021917,2]
[338249988,1726439239787,-500.0,0.00021917,2]
[338249989,1726439239810,-540.87,0.00021917,2]
[338249990,1726439239832,-540.87,0.00021917,2]
[338249991,1726439240093,-540.87,0.00021917,2]
[338249992,1726439240131,-540.87,0.00021917,2]
[338249993,1726439240153,-540.89735757,0.00021917,2]
[338249994,1726439240175,-500.0,0.00021917,2]
[338249995,1726439240199,-500.0,0.00021917,2]
[338249996,1726439240220,-500.0,0.00021917,2]
[338249997,1726439240242,-1549.63,0.00021917,2]
[338249998,1726439240264,-500.0,0.00021917,2]
[338249999,1726439240288,-500.0,0.00021917,2]
[338250000,1726439240309,-500.0,0.00021917,2]
[338250001,1726439240331,-3519.64,0.00021917,2]
[338250002,1726439240352,-1184.34,0.00021917,2]
[338250003,1726439240377,-500.0,0.00021917,2]
[338250004,1726439240400,-500.0,0.00021917,2]
[338250005,1726439240422,-500.0,0.00021917,2]
[338250006,1726439240445,-500.0,0.00021917,2]
[338250007,1726439240467,-500.0,0.00021917,2]
[338250008,1726439240490,-1235.39,0.00021917,2]
[338250009,1726439240511,-581.81,0.00021917,2]
[338250010,1726439240534,-2780.73,0.00021917,2]
[338250011,1726439240555,-589.6,0.00021917,2]
[338250012,1726439240575,-518.27572445,0.00021917,2]
[338250013,1726439240596,-500.0,0.00021917,2]
[338250014,1726439240617,-500.0,0.00021917,2]
[338250015,1726439240638,-228.56665692,0.00021917,2]
[338250016,1726439240658,-500.0,0.00021917,2]
[338250017,1726439240679,-500.0,0.00021917,2]
[338250018,1726439240705,-500.0,0.00021917,2]
[338250019,1726439240729,-500.0,0.00021917,2]
[338250020,1726439240749,-783.43,0.00021917,2]
[338250021,1726439240770,-1643.2,0.00021917,2]
[338250022,1726439240791,-500.0,0.00021917,2]
[338250023,1726439240813,-500.0,0.00021917,2]
[338250024,1726439240834,-500.0,0.00021917,2]
[338250025,1726439240855,-826.58,0.00021917,2]
[338250026,1726439240876,-764.17,0.00021917,2]
[338250027,1726439240898,-2439.76,0.00021917,2]
[338250028,1726439240918,-500.0,0.00021917,2]
[338250029,1726439240940,-500.0,0.00021917,2]
[338250030,1726439240963,-500.0,0.00021917,2]
[338250031,1726439240985,-711.91,0.00021917,2]
[338250032,1726439241007,-500.41383778,0.00021917,2]
[338250033,1726439241032,-1127.61,0.00021917,2]
[338250034,1726439241056,-500.0,0.00021917,2]
[338250035,1726439241077,-776.07,0.00021917,2]
[338250036,1726439241098,-500.0,0.00021917,2]
[338250037,1726439241119,-610.09,0.00021917,2]
[338250038,1726439241140,-500.0,0.00021917,2]
[338250039,1726439241162,-500.0,0.00021917,2]
[338250040,1726439241185,-500.0,0.00021917,2]
[338250041,1726439241213,-500.0,0.00021917,2]
[338250042,1726439241233,-500.0,0.00021917,2]
[338250043,1726439241256,-500.0,0.00021917,2]
[338250044,1726439241277,-2411.12,0.00021917,2]
[338250045,1726439241297,-500.0,0.00021917,2]
[338250046,1726439241318,-500.0,0.00021917,2]
[338250047,1726439241339,-500.0,0.00021917,2]
[338250048,1726439241361,-500.0,0.00021917,2]
[338250049,1726439241384,-500.0,0.00021917,2]
[338250050,1726439241406,-500.0,0.00021917,2]
[338250051,1726439241427,-882.71,0.00021917,2]
[338250052,1726439241448,-500.0,0.00021917,2]
[338250053,1726439241469,-2036.98,0.00021917,2]
[338250054,1726439241492,-500.0,0.00021917,2]
[338250055,1726439241514,-500.0,0.00021917,2]
[338250056,1726439241536,-2051.95,0.00021917,2]
[338250057,1726439241559,-1159.79,0.00021917,2]
[338250058,1726439241581,-501.51294841,0.00021917,2]
[338250059,1726439241600,-699.04,0.00021917,2]
[338250060,1726439241636,-500.0,0.00021917,2]
[338250061,1726439241668,-777.75,0.00021917,2]
[338250062,1726439241709,-500.0,0.00021917,2]
[338250063,1726439241744,-977.66,0.00021917,2]
[338250064,1726439241777,-874.8,0.00021917,2]
[338250065,1726439241811,-818.42,0.00021917,2]
[338250066,1726439241840,-501.66691444,0.00021917,2]
[338250067,1726439241870,-500.0,0.00021917,2]
[338250068,1726439241907,-500.0,0.00021917,2]
[338250069,1726439241940,-718.78317471,0.00021917,2]
[338250070,1726439243117,-839.41075469,0.00021817,2]
[338250071,1726439243147,-785.89682529,0.00021917,2]
[338250072,1726439243176,-500.0,0.00021917,2]
[338250073,1726439243207,-500.0,0.00021917,2]
[338250074,1726439243235,-500.0,0.00021917,2]
[338250075,1726439243264,-1890.21,0.00021917,2]
[338250076,1726439243295,-500.0,0.00021917,2]
[338250077,1726439243323,-1020.18,0.00021917,2]
[338250078,1726439243350,-1829.54,0.00021917,2]
[338250079,1726439243377,-500.0,0.00021917,2]
[338250080,1726439243406,-500.0,0.00021917,2]
[338250081,1726439243432,-345.88760627,0.00021917,2]
[338250082,1726439243459,-2768.36,0.00021917,2]
[338250083,1726439243486,-500.0,0.00021917,2]
[338250084,1726439243514,-796.41,0.00021917,2]
[338250085,1726439243541,-680.24,0.00021917,2]
[338250086,1726439243569,-500.0,0.00021917,2]
[338250087,1726439243597,-2324.33,0.00021917,2]
[338250088,1726439243619,-1195.96,0.00021917,2]
[338250089,1726439243644,-500.0,0.00021917,2]
[338250090,1726439243666,-500.0,0.00021917,2]
[338250091,1726439243690,-774.56,0.00021917,2]
[338250092,1726439243715,-896.35,0.00021917,2]
[338250093,1726439243740,-645.64,0.00021917,2]
[338250094,1726439243762,-500.0,0.00021917,2]
[338250095,1726439243782,-1528.99,0.00021917,2]
[338250096,1726439243806,-2903.35,0.00021917,2]
[338250097,1726439243827,-717.19,0.00021917,2]
[338250098,1726439243848,-500.0,0.00021917,2]
[338250099,1726439243869,-500.0,0.00021917,2]
[338250100,1726439243890,-898.07,0.00021917,2]
[338250101,1726439244279,-503.8837014,0.00021917,2]
[338250102,1726439244302,-580.13,0.00021917,2]
[338250103,1726439244323,-500.0,0.00021917,2]